fUST/lending_fUST_20260106
["ID","MTS","AMOUNT","RATE_DAILY","PERIOD"]
[400481911,1767639040043,-105.45115658,0.000108,2]
[400481912,1767639040053,-469.30383879,0.000112,2]
[400481937,1767639045013,-343.56276208,0.000112,2]
[400481938,1767639045025,-284.44339913,0.000112,2]
[400481939,1767639045034,-43.46481257,0.000116,2]
[400481946,1767639046126,-1053.84518743,0.000116,2]
[400481947,1767639046137,-1097.31,0.000121,2]
[400481948,1767639046146,-1097.31,0.000125,2]
[400481949,1767639046155,-688.2423333,0.0001287,2]
[400481952,1767639325117,123.53,0.00023331,63]
[400481953,1767639340684,550.73,0.00030136,120]
[400481954,1767639341052,550.73,0.00030136,120]
[400481955,1767639341308,550.73,0.00030136,120]
[400481956,1767640001259,10000.0,9.274e-05,2]
[400481957,1767640017434,1251.36,9.274e-05,2]
[400481995,1767640231946,-170.0,9.989e-05,2]
[400481997,1767640231956,-300.0,9.989e-05,2]
[400481999,1767640231966,-1200.0,9.989e-05,2]
[400482001,1767640231975,-560.0,9.989e-05,2]
[400482003,1767640231985,-500.0,9.99e-05,2]
[400482005,1767640231994,-388.58715078,9.99e-05,2]
[400482007,1767640232003,-500.0,9.99e-05,2]
[400482009,1767640232013,-500.0,9.99e-05,2]
[400482011,1767640232022,-500.0,9.99e-05,2]
[400482013,1767640232031,-371.73178627,9.99e-05,2]
[400482016,1767640232040,-500.0,9.99e-05,2]
[400482019,1767640232049,-500.0,9.99e-05,2]
[400482021,1767640232059,-500.0,9.99e-05,2]
[400482023,1767640232068,-500.0,9.99e-05,2]
[400482024,1767640232078,-500.0,9.99e-05,2]
[400482026,1767640232087,-500.0,9.99e-05,2]
[400482028,1767640232096,-500.0,9.99e-05,2]
[400482030,1767640232105,-500.0,9.99e-05,2]
[400482032,1767640232115,-500.0,9.99e-05,2]
[400482034,1767640232124,-500.0,9.99e-05,2]
[400482036,1767640232133,-500.0,9.99e-05,2]
[400482038,1767640232142,-500.0,9.99e-05,2]
[400482040,1767640232151,-500.0,9.99e-05,2]
[400482041,1767640232160,-500.0,9.99e-05,2]
[400482043,1767640232169,-500.0,9.99e-05,2]
[400482044,1767640232179,-500.0,9.99e-05,2]
[400482046,1767640232188,-500.0,9.99e-05,2]
[400482048,1767640232197,-500.0,9.99e-05,2]
[400482050,1767640232207,-306.64601381,9.99e-05,2]
[400482052,1767640232216,-426.11520089,9.99e-05,2]
[400482054,1767640232226,-500.0,9.99e-05,2]
[400482056,1767640232235,-500.0,9.99e-05,2]
[400482058,1767640232244,-500.0,9.99e-05,2]
[400482060,1767640232253,-500.0,9.99e-05,2]
[400482062,1767640232262,-161.27622664,9.99e-05,2]
[400482063,1767640232271,-500.0,9.99e-05,2]
[400482065,1767640232280,-462.39554878,9.99e-05,2]
[400482066,1767640232289,-500.0,9.99e-05,2]
[400482068,1767640232299,-500.0,9.99e-05,2]
[400482069,1767640232308,-500.0,9.99e-05,2]
[400482070,1767640232317,-500.0,9.99e-05,2]
[400482071,1767640232326,-500.0,9.99e-05,2]
[400482072,1767640232335,-500.0,9.99e-05,2]
[400482073,1767640232344,-500.0,9.99e-05,2]
[400482074,1767640232353,-500.0,9.99e-05,2]
[400482075,1767640232362,-500.0,9.99e-05,2]
[400482076,1767640232372,-943.68,0.0001,2]
[400482077,1767640232382,-300.0,0.00010198,2]
[400482078,1767640232391,-300.0,0.00010198,2]
[400482079,1767640232400,-300.0,0.00010198,2]
[400482080,1767640232410,-300.0,0.00010198,2]
[400482081,1767640232419,-300.0,0.00010198,2]
[400482082,1767640232429,-300.0,0.00010198,2]
[400482083,1767640232438,-300.0,0.00010198,2]
[400482084,1767640232447,-300.0,0.00010198,2]
[400482085,1767640232457,-300.0,0.00010198,2]
[400482086,1767640232466,-300.0,0.00010198,2]
[400482087,1767640232475,-300.0,0.00010198,2]
[400482088,1767640232484,-300.0,0.00010198,2]
[400482089,1767640232493,-300.0,0.00010198,2]
[400482090,1767640232503,-300.0,0.00010198,2]
[400482091,1767640232512,-300.0,0.00010198,2]
[400482092,1767640232523,-600.0,0.00010198,2]
[400482093,1767640232532,-500.0,0.00010198,2]
[400482094,1767640232544,-420.0,0.00010988,2]
[400482095,1767640232553,-1680.0,0.00010988,2]
[400482096,1767640232562,-1101.48677586,0.00010988,2]
[400482097,1767640232572,-720.0,0.00011218,2]
[400482098,1767640232582,-177.0,0.0001199,2]
[400482099,1767640232592,-587.0,0.00012087,2]
[400482100,1767640232603,-2351.0,0.00012087,2]
[400482101,1767640232614,-864.0,0.0001234,2]
[400482102,1767640232627,-2148.98518202,0.00012391,2]
[400482103,1767640232637,-500.0,0.00012466,2]
[400482104,1767640232646,-500.0,0.00012466,2]
[400482105,1767640232655,-151.19316023,0.00012466,2]
[400482106,1767640232664,-500.0,0.00012466,2]
[400482107,1767640232673,-728.05394387,0.00012503,2]
[400482108,1767640232682,-286.0,0.00012521,2]
[400482109,1767640232691,-155.954,0.0001254,2]
[400482110,1767640232700,-500.0,0.00012588,2]
[400482111,1767640232709,-500.0,0.00012588,2]
[400482112,1767640232718,-213.09682171,0.00012588,2]
[400482113,1767640232726,-465.34971666,0.00012588,2]
[400482114,1767640232735,-500.0,0.00012588,2]
[400482115,1767640232744,-500.0,0.00012588,2]
[400482116,1767640232752,-267.80969461,0.00012588,2]
[400482117,1767640232761,-500.0,0.00012588,2]
[400482118,1767640232771,-500.0,0.00012588,2]
[400482119,1767640232780,-500.0,0.00012588,2]
[400482120,1767640232788,-500.0,0.00012588,2]
[400482121,1767640232798,-500.0,0.00012588,2]
[400482122,1767640232806,-500.0,0.00012588,2]
[400482123,1767640232815,-267.97851127,0.00012589,2]
[400482124,1767640232824,-959.13560184,0.00012589,2]
[400482125,1767640232835,-1070.84213104,0.00012589,2]
[400482126,1767640232844,-3832.70586494,0.00012589,2]
[400482127,1767640232853,-501.0951248,0.00012603,2]
[400482128,1767640232862,-500.0,0.00012603,2]
[400482129,1767640232870,-196.89980116,0.00012603,2]
[400482147,1767640238238,-943.68,0.000104,2]
[400482148,1767640238247,-292.61650389,0.000108,2]
[400482149,1767640238259,-651.06349611,0.000108,2]
[400482150,1767640238268,-943.68,0.000112,2]
[400482151,1767640238277,-943.68,0.000116,2]
[400482152,1767640238286,-246.49933067,0.000121,2]
[400482166,1767640240089,-697.18066933,0.000121,2]
[400482167,1767640240099,-943.68,0.000125,2]
[400482168,1767640240108,-303.10019884,0.00012603,2]
[400482169,1767640240117,-286.0,0.00012635,2]
[400482170,1767640240127,-286.0,0.00012719,2]
[400482171,1767640240136,-325.65119479,0.0001274,2]
[400482172,1767640240146,-500.0,0.0001274,2]
[400482173,1767640240156,-1837.98646652,0.0001274,2]
[400482174,1767640240165,-286.0,0.00012748,2]
[400482175,1767640240174,-728.05394386,0.00012808,2]
[400482176,1767640240184,-2796.04669497,0.00012813,2]
[400482177,1767640240200,-319.93758943,0.00012813,2]
[400482178,1767640240209,-521.58829454,0.00012813,2]
[400482179,1767640240220,-272.33990001,0.00012813,2]
[400482204,1767640246107,-91.09305895,0.00012813,2]
[400482205,1767640246117,-618.4311793,0.00012813,2]
[400482206,1767640246126,-180.6925469,0.00012813,2]
[400482207,1767640246136,-151.0562765,0.00012813,2]
[400482208,1767640246145,-425.0628848,0.00012813,2]
[400482209,1767640246155,-500.0,0.00012877,2]
[400482210,1767640246164,-252.90234435,0.00012877,2]
[400482211,1767640246174,-943.68,0.000129,2]
[400482212,1767640246183,-286.0,0.00012901,2]
[400482213,1767640246192,-286.0,0.00012947,2]
[400482214,1767640246203,-500.0,0.00013014,2]
[400482215,1767640246213,-286.0,0.00013024,2]
[400482216,1767640246223,-286.0,0.00013059,2]
[400482217,1767640246233,-728.05394386,0.00013112,2]
[400482218,1767640246241,-286.0,0.00013146,2]
[400482219,1767640246251,-500.0,0.00013151,2]
[400482220,1767640246260,-300.0,0.00013158,2]
[400482221,1767640246269,-300.0,0.00013158,2]
[400482222,1767640246279,-1041.66666667,0.00013158,2]
[400482223,1767640246289,-286.0,0.00013187,2]
[400482224,1767640246298,-286.0,0.00013195,2]
[400482225,1767640246308,-286.0,0.00013244,2]
[400482226,1767640246317,-500.0,0.00013273,2]
[400482227,1767640246326,-500.0,0.00013273,2]
[400482228,1767640246335,-500.0,0.00013273,2]
[400482229,1767640246344,-500.0,0.00013273,2]
[400482230,1767640246353,-500.0,0.00013273,2]
[400482231,1767640246362,-500.0,0.00013273,2]
[400482232,1767640246371,-500.0,0.00013273,2]
[400482233,1767640246380,-360.64995814,0.00013273,2]
[400482234,1767640246389,-500.0,0.00013273,2]
[400482235,1767640246399,-500.0,0.00013273,2]
[400482236,1767640246407,-500.0,0.00013273,2]
[400482237,1767640246416,-500.0,0.00013273,2]
[400482238,1767640246425,-500.31926671,0.00013273,2]
[400482239,1767640246434,-500.0,0.00013273,2]
[400482240,1767640246443,-522.04357159,0.00013273,2]
[400482241,1767640246453,-500.0,0.00013273,2]
[400482242,1767640246462,-199.13796001,0.00013273,2]
[400482243,1767640246471,-632.666168,0.00013273,2]
[400482244,1767640246481,-451.52692778,0.00013273,2]
[400482245,1767640246490,-500.0,0.00013273,2]
[400482246,1767640246499,-500.0,0.00013273,2]
[400482247,1767640246508,-500.0,0.00013273,2]
[400482248,1767640246517,-500.0,0.00013273,2]
[400482249,1767640246526,-500.0,0.00013273,2]
[400482250,1767640246535,-500.0,0.00013273,2]
[400482251,1767640246546,-500.0,0.00013273,2]
[400482252,1767640246556,-500.0,0.00013273,2]
[400482253,1767640246566,-500.0,0.00013273,2]
[400482254,1767640246576,-500.0,0.00013273,2]
[400482255,1767640246586,-500.0,0.00013273,2]
[400482256,1767640246595,-261.31955131,0.00013273,2]
[400482257,1767640246606,-500.0,0.00013273,2]
[400482258,1767640246619,-500.0,0.00013273,2]
[400482259,1767640246631,-500.0,0.00013273,2]
[400482260,1767640246640,-500.0,0.00013273,2]
[400482261,1767640246650,-500.0,0.00013273,2]
[400482262,1767640246660,-500.39540392,0.00013273,2]
[400482263,1767640246670,-500.0,0.00013273,2]
[400482264,1767640246680,-500.0,0.00013273,2]
[400482265,1767640246690,-500.0,0.00013273,2]
[400482266,1767640246699,-500.0,0.00013273,2]
[400482267,1767640246708,-500.0,0.00013273,2]
[400482268,1767640246717,-500.0,0.00013273,2]
[400482269,1767640246727,-270.79889081,0.00013288,2]
[400482270,1767640246736,-286.0,0.00013288,2]
[400482271,1767640246746,-286.0,0.00013295,2]
[400482272,1767640246755,-943.68,0.000133,2]
[400482273,1767640246765,-286.0,0.00013331,2]
[400482274,1767640246774,-3288.0,0.00013348,2]
[400482275,1767640246784,-3288.0,0.00013375,2]
[400482276,1767640246793,-728.05394386,0.00013417,2]
[400482277,1767640246802,-168.0,0.0001342,2]
[400482278,1767640246811,-286.0,0.00013446,2]
[400482279,1767640246820,-286.0,0.00013554,2]
[400482280,1767640246830,-154165.74483602,0.00013598,2]
[400482281,1767640246940,-6635.13249359,0.00013598,2]
[400482409,1767641432140,-221.00000003,9.752e-05,2]
[400482410,1767641432149,-557.0,9.752e-05,2]
[400482411,1767641432158,-164.02445584,9.801e-05,2]
[400482412,1767641432168,-300.0,9.999e-05,2]
[400482413,1767641432177,-1200.0,9.999e-05,2]
[400482415,1767641432186,-1927.58489932,0.0001,2]
[400482417,1767641432196,-3007.10921804,0.0001,2]
[400482419,1767641432205,-531.73798703,0.0001,2]
[400482421,1767641432215,-773.82,0.0001,2]
[400482422,1767641432224,-1132.33030181,0.00010047,2]
[400482423,1767641432234,-214.0,0.00010183,2]
[400482424,1767641432243,-500.0,0.00010183,2]
[400482425,1767641432253,-541.06511435,0.00010183,2]
[400482426,1767641432262,-500.0,0.00010183,2]
[400482427,1767641432272,-500.0,0.00010183,2]
[400482429,1767641432281,-500.0,0.00010183,2]
[400482431,1767641432291,-424.07848581,0.00010183,2]
[400482432,1767641432300,-500.0,0.00010183,2]
[400482434,1767641432312,-162.48839431,0.00010183,2]
[400482435,1767641432322,-500.0,0.00010183,2]
[400482436,1767641432331,-412.17987574,0.00010183,2]
[400482437,1767641432341,-14558.18537552,0.00010184,2]
[400482438,1767641432350,-300.0,0.00010188,2]
[400482439,1767641432360,-300.0,0.00010188,2]
[400482440,1767641432371,-300.0,0.00010188,2]
[400482441,1767641432380,-300.0,0.00010188,2]
[400482442,1767641432390,-300.0,0.00010188,2]
[400482443,1767641432399,-300.0,0.00010188,2]
[400482444,1767641432408,-300.0,0.00010188,2]
[400482445,1767641432418,-300.0,0.00010188,2]
[400482446,1767641432428,-300.0,0.00010188,2]
[400482447,1767641432437,-300.0,0.00010188,2]
[400482448,1767641432446,-300.0,0.00010188,2]
[400482449,1767641432456,-300.0,0.00010188,2]
[400482450,1767641432466,-300.0,0.00010188,2]
[400482451,1767641432475,-300.0,0.00010188,2]
[400482452,1767641432484,-300.0,0.00010188,2]
[400482453,1767641432493,-3451.0202138,0.00010193,2]
[400482454,1767641432502,-600.0,0.00010391,2]
[400482455,1767641432512,-420.0,0.00010999,2]
[400482456,1767641432521,-161.02,0.00011008,2]
[400482457,1767641432530,-184.02,0.00011415,2]
[400482458,1767641432539,-720.0,0.0001143,2]
[400482459,1767641432548,-2114.66060362,0.0001145,2]
[400482460,1767641432558,-193.54885789,0.00011801,2]
[400482461,1767641432567,-207.02,0.00011823,2]
[400482462,1767641432577,-500.0,0.00011955,2]
[400482463,1767641432586,-500.0,0.00012226,2]
[400482464,1767641432596,-298.81255558,0.00012226,2]
[400482465,1767641432605,-500.0,0.00012227,2]
[400482466,1767641432614,-215.37630651,0.00012227,2]
[400482467,1767641432624,-500.0,0.00012227,2]
[400482468,1767641432633,-500.0,0.00012227,2]
[400482469,1767641432643,-500.0,0.00012227,2]
[400482470,1767641432652,-500.0,0.00012227,2]
[400482471,1767641432662,-500.0,0.00012227,2]
[400482472,1767641432671,-401.18215408,0.00012227,2]
[400482473,1767641432680,-500.0,0.00012227,2]
[400482474,1767641432690,-611.2122032,0.00012227,2]
[400482475,1767641432700,-500.0,0.00012227,2]
[400482476,1767641432710,-500.0,0.00012227,2]
[400482477,1767641432719,-500.0,0.00012227,2]
[400482478,1767641432729,-500.0,0.00012227,2]
[400482479,1767641432739,-500.0,0.00012227,2]
[400482480,1767641432749,-500.0,0.00012227,2]
[400482481,1767641432763,-300.0,0.00012227,2]
[400482482,1767641432774,-19798.40496657,0.00012228,2]
[400482487,1767641438216,-706.64386769,0.000104,2]
[400482488,1767641438229,-67.17613231,0.000104,2]
[400482489,1767641438239,-773.82,0.000108,2]
[400482490,1767641438249,-104.92288928,0.000112,2]
[400482491,1767641438260,-668.89711072,0.000112,2]
[400482492,1767641438270,-773.82,0.000116,2]
[400482493,1767641438279,-773.82,0.000121,2]
[400482494,1767641438289,-11603.38790526,0.00012228,2]
[400482495,1767641438300,-19033.94525805,0.00012228,2]
[400482496,1767641438312,-8017.88949958,0.00012228,2]
[400482512,1767641440380,-426.13638038,0.00012228,2]
[400482514,1767641440393,-892.33,0.00012228,2]
[400482522,1767641445427,-1695.2777731,0.00012131,2]
[400482523,1767641446114,-777.17506577,0.00012131,2]
[400482524,1767641446126,-971.15581075,0.00012131,2]
[400482525,1767641446170,-2550.797515,0.00012131,2]
[400482526,1767641446179,-1491.56730529,0.00012228,2]
[400482529,1767641446328,-24890.35805785,0.00012228,2]
[400482587,1767642632304,-192.45000003,9.557e-05,2]
[400482588,1767642632314,-555.0,9.654e-05,2]
[400482589,1767642632326,-178.49812522,9.752e-05,2]
[400482590,1767642632335,-305.44745005,0.0001,2]
[400482722,1767642641065,-375.51254995,0.0001,2]
[400482723,1767642641075,-300.0,0.00010385,2]
[400482724,1767642641086,-1200.0,0.00010385,2]
[400482725,1767642641096,-300.0,0.00010386,2]
[400482726,1767642641106,-300.0,0.00010386,2]
[400482727,1767642641115,-300.0,0.00010386,2]
[400482728,1767642641126,-300.0,0.00010386,2]
[400482729,1767642641137,-300.0,0.00010386,2]
[400482730,1767642641147,-300.0,0.00010386,2]
[400482731,1767642641157,-300.0,0.00010386,2]
[400482732,1767642641167,-300.0,0.00010386,2]
[400482733,1767642641177,-300.0,0.00010386,2]
[400482734,1767642641191,-300.0,0.00010386,2]
[400482735,1767642641201,-300.0,0.00010386,2]
[400482736,1767642641211,-300.0,0.00010386,2]
[400482737,1767642641222,-300.0,0.00010386,2]
[400482738,1767642641231,-300.0,0.00010386,2]
[400482739,1767642641241,-300.0,0.00010386,2]
[400482740,1767642641251,-2523.37652225,0.00010386,2]
[400482741,1767642641263,-680.96,0.000104,2]
[400482742,1767642641273,-944.03638873,0.000104,2]
[400482748,1767642645145,-176.82494993,0.000104,2]
[400482749,1767642645155,-186.014456,0.00010478,2]
[400482750,1767642645164,-600.0,0.00010593,2]
[400482751,1767642645173,-680.96,0.000108,2]
[400482752,1767642645183,-680.96,0.000112,2]
[400482753,1767642645196,-420.0,0.00011419,2]
[400482754,1767642645205,-1437.24059407,0.00011424,2]
[400482756,1767642646614,-242.75940593,0.00011424,2]
[400482757,1767642646625,-680.96,0.000116,2]
[400482758,1767642646635,-720.0,0.00011652,2]
[400482759,1767642646644,-210.62778776,0.00011752,2]
[400482760,1767642646653,-1781.61933661,0.00011855,2]
[400482761,1767642646671,-671.77687475,0.00011855,2]
[400482762,1767642646681,-500.0,0.00011955,2]
[400482763,1767642646691,-333.3950268,0.00012004,2]
[400482764,1767642646700,-500.0,0.00012004,2]
[400482765,1767642646712,-500.0,0.00012004,2]
[400482766,1767642646722,-500.0,0.00012004,2]
[400482767,1767642646732,-507.44355927,0.00012004,2]
[400482768,1767642646741,-250.42936338,0.00012039,2]
[400482769,1767642646751,-179.6545295,0.00012077,2]
[400482770,1767642646761,-2044.9822373,0.00012077,2]
[400482771,1767642646771,-167.8677076,0.00012077,2]
[400482772,1767642646781,-680.96,0.000121,2]
[400482773,1767642646791,-469.11,0.00012271,2]
[400482774,1767642646801,-2286.79175241,0.000123,2]
[400482775,1767642646811,-617.23,0.00012329,2]
[400482776,1767642646822,-514.36,0.00012329,2]
[400482777,1767642646831,-428.63,0.00012329,2]
[400482778,1767642646840,-428.63,0.00012329,2]
[400482779,1767642646851,-285.76,0.00012329,2]
[400482780,1767642646861,-238.13,0.00012329,2]
[400482781,1767642646871,-198.44,0.00012329,2]
[400482782,1767642646880,-165.37,0.00012329,2]
[400482783,1767642646890,-826.86,0.00012329,2]
[400482784,1767642646899,-500.0,0.00012329,2]
[400482785,1767642646909,-500.0,0.00012329,2]
[400482786,1767642646918,-500.0,0.00012329,2]
[400482787,1767642646928,-500.0,0.00012329,2]
[400482788,1767642646937,-500.0,0.00012329,2]
[400482789,1767642646947,-500.0,0.00012329,2]
[400482790,1767642646957,-500.0,0.00012329,2]
[400482791,1767642646967,-500.0,0.00012329,2]
[400482792,1767642646977,-500.0,0.00012329,2]
[400482793,1767642646986,-367.20217576,0.00012329,2]
[400482794,1767642646996,-500.0,0.00012329,2]
[400482795,1767642647005,-500.0,0.00012329,2]
[400482796,1767642647016,-500.0,0.00012329,2]
[400482797,1767642647025,-500.0,0.00012329,2]
[400482798,1767642647035,-500.0,0.00012329,2]
[400482799,1767642647044,-500.0,0.00012329,2]
[400482800,1767642647053,-500.0,0.00012329,2]
[400482801,1767642647062,-499.99999999,0.00012329,2]
[400482802,1767642647071,-169053.00865109,0.00012371,2]
[400482803,1767642647083,-2265.9225486,0.00012371,2]
[400482805,1767643049989,155.0,1e-05,2]
[400482918,1767643838706,-560.0,0.0001,2]
[400482920,1767643838716,-599.25,0.0001,2]
[400482922,1767643838726,-180.57216543,0.000101,2]
[400482924,1767643838735,-599.25,0.000104,2]
[400482926,1767643838744,-599.25,0.000108,2]
[400482928,1767643838754,-599.25,0.000112,2]
[400482930,1767643838763,-1200.0,0.00011219,2]
[400482932,1767643838772,-999.0,0.00011222,2]
[400482934,1767643838781,-300.0,0.00011596,2]
[400482936,1767643838791,-300.0,0.00011596,2]
[400482938,1767643838804,-300.0,0.00011596,2]
[400482940,1767643838813,-300.0,0.00011596,2]
[400482942,1767643838822,-765.0,0.00011597,2]
[400482944,1767643838832,-1155.23127431,0.00011597,2]
[400482946,1767643838841,-599.25,0.000116,2]
[400482948,1767643838851,-300.0,0.00011831,2]
[400482950,1767643838860,-300.0,0.00011831,2]
[400482952,1767643838870,-300.0,0.00011831,2]
[400482954,1767643838881,-300.0,0.00011831,2]
[400482956,1767643838891,-300.0,0.00011831,2]
[400482958,1767643838901,-300.0,0.00011831,2]
[400482960,1767643838911,-300.0,0.00011831,2]
[400482962,1767643838920,-300.0,0.00011831,2]
[400482964,1767643838930,-300.0,0.00011831,2]
[400482966,1767643838940,-300.0,0.00011831,2]
[400482968,1767643838951,-300.0,0.00011831,2]
[400482970,1767643838961,-300.0,0.00011831,2]
[400482972,1767643838971,-300.0,0.00011831,2]
[400482974,1767643838983,-300.0,0.00011831,2]
[400482976,1767643838993,-300.0,0.00011831,2]
[400482978,1767643839003,-500.0,0.00011954,2]
[400482980,1767643839012,-375.03953615,0.00011979,2]
[400482982,1767643839023,-1500.15814459,0.00011979,2]
[400482984,1767643839032,-1787.59541038,0.00011979,2]
[400482987,1767643839047,-1584.38505913,0.00011979,2]
[400482989,1767643839057,-447.30209604,0.00011979,2]
[400482991,1767643839068,-353.60349745,0.00011979,2]
[400482992,1767643839077,-418.43899844,0.00011979,2]
[400482993,1767643839088,-1023.73570649,0.00011979,2]
[400482994,1767643839100,-526.80861021,0.00011979,2]
[400482996,1767643839111,-1234.63905884,0.00011979,2]
[400482998,1767643839120,-1337.01217935,0.00011979,2]
[400482999,1767643839131,-355.81467659,0.00011979,2]
[400483000,1767643839144,-5515.32348551,0.00011979,2]
[400483001,1767643839154,-600.0,0.00012067,2]
[400483002,1767643839164,-213.07515521,0.000121,2]
[400483003,1767643839174,-599.25,0.000121,2]
[400483004,1767643839185,-8063.61773582,0.0001217,2]
[400483005,1767643839196,-3795.08613463,0.0001217,2]
[400483030,1767643846697,-479.2606463,0.00010606,2]
[400483031,1767643846706,-56.15154947,0.00012143,2]
[400483032,1767643846858,-796.562137,0.00012143,2]
[400483037,1767643942610,151.0,0.00030136,120]
[400483060,1767644234295,169.332396,5.52e-05,2]
[400483062,1767644411946,200.0,0.0001,10]
[400483086,1767645031606,-1200.0,9.604e-05,2]
[400483088,1767645031616,-977.89216173,9.605e-05,2]
[400483093,1767645031663,-4022.10783827,9.605e-05,2]
[400483095,1767645031672,-555.0,9.605e-05,2]
[400483097,1767645031682,-182.76664632,9.776e-05,2]
[400483099,1767645031691,-568.96694113,9.899e-05,7]
[400483101,1767645031700,-1157.49036144,9.903e-05,2]
[400483103,1767645031709,-1149.43,0.0001,2]
[400483105,1767645031718,-300.0,0.00010095,2]
[400483107,1767645031728,-436.0,0.00010096,2]
[400483109,1767645031737,-300.0,0.00010097,2]
[400483111,1767645031746,-300.0,0.00010097,2]
[400483113,1767645031755,-300.0,0.00010097,2]
[400483115,1767645031764,-300.0,0.00010097,2]
[400483117,1767645031773,-300.0,0.00010097,2]
[400483118,1767645031783,-300.0,0.00010097,2]
[400483119,1767645031792,-300.0,0.00010097,2]
[400483121,1767645031801,-300.0,0.00010097,2]
[400483123,1767645031811,-300.0,0.00010097,2]
[400483125,1767645031820,-300.0,0.00010097,2]
[400483127,1767645031831,-300.0,0.00010097,2]
[400483129,1767645031847,-300.0,0.00010097,2]
[400483131,1767645031857,-300.0,0.00010097,2]
[400483133,1767645031865,-300.0,0.00010097,2]
[400483135,1767645031875,-300.0,0.00010097,2]
[400483137,1767645031884,-600.0,0.00010298,2]
[400483139,1767645031894,-1149.43,0.000104,2]
[400483141,1767645031904,-3442.36855592,0.00010781,2]
[400483142,1767645031913,-344.49262362,0.00011036,2]
[400483145,1767645031923,-1303.47101946,0.00011036,2]
[400483147,1767645031934,-73.12150454,0.00011036,2]
[400483149,1767645031943,-615.45528506,0.00011036,2]
[400483150,1767645031953,-2164.98072288,0.00011234,2]
[400483152,1767645031962,-193.93872878,0.00011248,2]
[400483154,1767645031971,-200.0,0.00011296,2]
[400483155,1767645031981,-720.0,0.00011328,2]
[400483156,1767645031990,-500.0,0.00011347,2]
[400483157,1767645031999,-500.0,0.00011347,2]
[400483158,1767645032008,-500.0,0.00011347,2]
[400483159,1767645032018,-500.0,0.00011347,2]
[400483160,1767645032027,-500.0,0.00011347,2]
[400483161,1767645032036,-500.0,0.00011347,2]
[400483162,1767645032045,-380.18568676,0.00011347,2]
[400483163,1767645032057,-119.81431324,0.00011347,2]
[400483164,1767645032066,-500.0,0.00011347,2]
[400483165,1767645032218,-500.0,0.00011347,2]
[400483166,1767645032228,-6.16160054,0.00011347,2]
[400483280,1767645045990,-5000.0,0.00010692,2]
[400483281,1767645046000,-1149.43,0.000108,2]
[400483282,1767645046009,-500.0,0.00011035,2]
[400483283,1767645046019,-500.0,0.00011035,2]
[400483284,1767645046028,-500.0,0.00011035,2]
[400483285,1767645046038,-500.0,0.00011035,2]
[400483286,1767645046048,-349.97381319,0.00011035,2]
[400483287,1767645046057,-500.0,0.00011035,2]
[400483288,1767645046067,-500.0,0.00011035,2]
[400483289,1767645046078,-287.71667495,0.00011035,2]
[400483290,1767645046096,-500.0,0.00011035,2]
[400483291,1767645046106,-500.0,0.00011035,2]
[400483292,1767645046115,-393.23993689,0.00011035,2]
[400483293,1767645046127,-106.76006311,0.00011035,2]
[400483294,1767645046136,-533.60185864,0.00011035,2]
[400483295,1767645046146,-500.0,0.00011035,2]
[400483296,1767645046155,-250.0,0.00011035,2]
[400483297,1767645046166,-1149.43,0.000112,2]
[400483298,1767645046175,-193.93872878,0.00011594,2]